Cogmind - Beta 17 @@@ ROGUE MODE // 2026.06.29 @ 23:29:07 Player: f3-rnm Result: Destroyed by VI-9LH(R) with Subdweller Machine Gun Performance ------------- Evolutions (0) 0 Regions Visited (2) 400 Robots Destroyed (25) 125 Value Destroyed (713) 713 Prototype IDs (15) 300 Alien Tech Used (0) 0 Bonus (8000) 8000 TOTAL SCORE: 9538 Bonus ------- Prayed to X0-1V1 5000 Major X0-1V1 Interference 3000 Cogmind --------- Core Integrity 0/250 Matter 1095/1100 Energy 995/1000 System Corruption 0% Temperature Cool (0) Movement Rolling (90) Location -10/Subcaves Parts ------- > --- POWER (2) -------- (None) > --- PROPULSION (1) --- Armored Wheel > --- UTILITY (2) ------ Medium Storage Unit > --- WEAPON (2) ------- Makeshift Sword > --- INVENTORY (10) --- Meta Core Spiked Treads Subdweller Monowheel Small Storage Unit Seismic Detector Makeshift Hacking Suite X0-1V1's Piety Tracker Flamer Peak State ------------ > --- POWER ------------ Reinforced Ion Engine Deuterium Engine > --- PROPULSION ------- Armored Wheel > --- UTILITY ---------- Makeshift Heat Sink Medium Storage Unit > --- WEAPON ----------- Subdweller Laser Advanced Beam Cannon > --- INVENTORY -------- Spiked Treads Armored Wheel Small Storage Unit Seismic Detector Makeshift Hacking Suite X0-1V1's Piety Tracker Barrage Gun [Rating: 19] Favorites ----------- Power Ion Engine Engine Ion Engine Propulsion Light Treads Treads Light Treads Wheel Armored Wheel Utility Small Storage Unit Device Shield Generator Storage Small Storage Unit Weapon Assault Rifle Energy Gun EM Pulse Gun Energy Cannon Advanced Beam Cannon Ballistic Gun Assault Rifle Ballistic Cannon Battle Cannon Special Weapon Mining Laser Slashing Weapon Makeshift Sword Build | -11 -10 -10 ------- Run | Yrd Mat Sub Slots Evolved . | . . . Power . | . . . Propulsion . | . . . Utility . | . . . Weapon . | . . . Parts Attached 22 | 6 2 14 Power 3 | 1 . 2 Engine 3 | 1 . 2 Core . | . . . Reactor . | . . . Propulsion 5 | 2 . 3 Treads 2 | 2 . . Leg . | . . . Wheel 3 | . . 3 Hover . | . . . Flight . | . . . Utility 3 | 1 . 2 Device 1 | . . 1 Storage 2 | 1 . 1 Processor . | . . . Hackware . | . . . Protection . | . . . Artifact . | . . . Weapon 11 | 2 2 7 Energy Gun 3 | 1 . 2 Energy Cannon 1 | . . 1 Ballistic Gun 3 | 1 . 2 Ballistic Cannon 2 | . 1 1 Launcher . | . . . Special Weapon 1 | . 1 . Impact Weapon . | . . . Slashing Weapon 1 | . . 1 Piercing Weapon . | . . . Special Melee Weapon . | . . . Unidentified Prototypes . | . . . Parts Lost 14 | . . 14 Power 4 | . . 4 Propulsion 2 | . . 2 Utility 2 | . . 2 Weapon 6 | . . 6 Highest Loss Streak 3 | . . 3 To Critical Strikes . | . . . Average Backups 5 | 1 3 6 Power . | . 1 . Propulsion 1 | . 1 1 Utility 2 | . . 2 Weapon 1 | . 1 1 Tool/Special . | . . . Unused Backups 10 | . . 10 Power 1 | . . 1 Propulsion 2 | . . 2 Utility 5 | . . 5 Weapon 1 | . . 1 Tool/Special 1 | . . 1 Average Slot Usage (%) 82 | . 84 80 Engine 15 | . 14 15 Treads 17 | . 28 13 Wheel 6 | . . 9 Device 2 | . . 2 Storage 14 | . 14 14 Energy Gun 8 | . 12 6 Energy Cannon 1 | . . 2 Ballistic Gun 10 | . 14 8 Ballistic Cannon 4 | . . 5 Peak Build Rating 19 | 6 7 19 Average Rating 9 | 4 6 11 On Entrance 4 | . 6 7 Avg Prop Armor Cover (%) 16 | . . 16 Naked Turns . | . . . Heaviest Build 39 | 14 15 39 Greatest Support 40 | 40 40 40 Greatest Overweight (x) 3 | . . 3 Average Overweight (x) . | . . . Largest Inventory Capacity 10 | 8 8 10 Average Capacity 8 | 6 8 8 Most Carried 9 | 2 6 9 Average Carried 5 | 1 3 6 Final Capacity 10 | 8 8 10 Final Carried 8 | 2 5 8 Class Distribution -------------------- 96% | Mutant 3% | Gunner Dominant Class ---------------- Mutant | -10/Materials Mutant | -10/Subcaves Resources | -11 -10 -10 ----------- Run | Yrd Mat Sub Matter Collected 1632 | 266 30 1336 Remotely . | . . . Salvage Created 856 | 28 190 638 Parts 47 | 1 10 36 Haulers Intercepted . | . . . Recyclers Shooed . | . . . Parts Field Recycled . | . . . Retrieved Matter . | . . . Parts Self-Destructed 35 | . . 35 Prevented 1 | . . 1 Parts Restored . | . . . Kills | -11 -10 -10 ------- Run | Yrd Mat Sub Combat Hostiles Destroyed 22 | . 2 20 Guns 17 | . 2 15 Cannons 5 | . . 5 Classes Destroyed 7 | 1 3 3 Worker 1 | 1 . . Tunneler 1 | . 1 . Recycler 1 | . 1 . Swarmer 5 | . . 5 Grunt 9 | . 2 7 Subdweller 7 | . . 7 Mutant 1 | . . 1 Best Kill Streak 4 | 1 2 4 Combat Bots Only 4 | . 1 4 Max Kills in Single Turn 2 | 1 1 2 Gunslinging 1 | . . 1 Exploded . | . . . Melee . | . . . Uniques/NPCs Destroyed . | . . . Combat | -11 -10 -10 -------- Run | Yrd Mat Sub Hostile Shots Fired 215 | . 9 206 Missed 49 | . 1 48 Hits 166 | . 8 158 Projectile 166 | . 8 158 Damage Taken 2161 | . 94 2067 Core 555 | . 48 507 Absorbed by Shields 168 | . . 168 Ignored by Resistances 211 | . . 211 Core Remaining (%) 100 | 100 . . Volleys Fired 117 | 2 18 97 Largest 3 | 2 2 3 Hottest 168 | 60 100 168 Shots Fired 198 | 4 28 166 Gun 142 | 4 20 118 Cannon 48 | . . 48 Launcher . | . . . Special 8 | . 8 . Kinetic 91 | 2 10 79 Thermal 87 | . 8 79 Explosive . | . . . Electromagnetic 20 | 2 10 8 Robot Hit Streak 15 | 3 5 15 Robot Miss Streak 5 | 1 2 5 Penetration Max . | . . . Secondary Targets 2 | . . 2 Max Gunslinging Chain 1 | . . 1 Shots Hit Robots 123 | 3 13 107 Core Hits 44 | 1 8 35 Critical Kills . | . . . Critical Parts Destroyed . | . . . Critical Strikes . | . . . Melee Attacks 7 | . . 7 Impact . | . . . Slashing 7 | . . 7 Piercing . | . . . Sneak Attacks . | . . . Combat Hostiles . | . . . Follow-up Attacks . | . . . Damage Inflicted 2198 | 38 203 1957 Guns 1551 | 38 175 1338 Cannons 507 | . . 507 Explosions 28 | . 28 . Melee 112 | . . 112 Ramming . | . . . Kinetic 1116 | 23 105 988 Thermal 828 | . 28 800 Explosive . | . . . Electromagnetic 142 | 15 70 57 Impact . | . . . Slashing 112 | . . 112 Piercing . | . . . Highest Corruption 14 | . . 14 Average Corruption 11 | . . 11 Corruption Purged . | . . . Corruption Blocked . | . . . Effects 5 | . . 5 Message Errors 2 | . . 2 Heat Flow Errors 2 | . . 2 Data Loss (minor) 1 | . . 1 Overload Shots . | . . . Overflow Damage . | . . . Projectiles . | . . . Explosions . | . . . Melee . | . . . Knockbacks 2 | . . 2 Impact . | . . . Kinetic 2 | . . 2 Secondary . | . . . Self-Inflicted Damage . | . . . Shots . | . . . Rammed . | . . . Targets Rammed . | . . . Kicked . | . . . Crushed . | . . . Highest Temperature 404 | . 62 404 Average Temperature 98 | . 24 124 Received Heat Transfer 631 | . 51 580 Effects 1 | . . 1 Shutdowns 1 | . . 1 Siege Activations . | . . . Martial Activations . | . . . Shielding Activations . | . . . Robots Disrupted . | . . . Combat Hostiles . | . . . Robots Corrupted . | . . . Combat Hostiles . | . . . Parts Fried . | . . . Impact Corruptions . | . . . Robots Melted . | . . . Combat Hostiles . | . . . Parts Melted 2 | . . 2 Heat Transferred 1229 | . 50 1179 Parts Sabotaged . | . . . Parts Stolen . | . . . Parts Stripped . | . . . Power Chain Reactions 1 | . 1 . Alert | -11 -10 -10 ------- Run | Yrd Mat Sub Maximum Alert Level . | . . . Low Security (%) 100 | 100 100 . Level 1 . | . . . Level 2 . | . . . Level 3 . | . . . Level 4 . | . . . Level 5 . | . . . High Security . | . . . Max Security . | . . . Peak Influence 30 | 5 30 . Initial 3 | . 3 . Average 3 | . 4 . Influence Increases 318 | 5 73 240 Destroy 0b10 Robot/C 280 | . 40 240 Destroy 0b10 Robot/NC 15 | 5 10 . Destroy Leader 20 | . 20 . Destroy Structure 3 | . 3 . Influence Decreases 318 | . 78 240 Entered New Map 2 | . 2 . Time Decay 232 | . 76 156 Lost Part 84 | . . 84 Squads Dispatched 2 | . 2 . Investigation . | . . . Extermination . | . . . Reinforcement 2 | . 2 . Assault . | . . . Garrison . | . . . Intercept . | . . . Searches Triggered . | . . . Construction Impeded . | . . . Haulers Reinforced . | . . . Active Scanning Responses . | . . . Cargo Convoy Interrupts . | . . . Stealth | -11 -10 -10 --------- Run | Yrd Mat Sub Distress Signals . | . . . Communications Jammed . | . . . Distress Signals . | . . . Times Spotted 31 | . 6 25 Peak Tracking Total 5 | . 3 5 Tactical Retreats . | . . . Traps | -11 -10 -10 ------- Run | Yrd Mat Sub Traps Triggered . | . . . Indirectly . | . . . Trap Hack Attempts . | . . . Triggered . | . . . Disarmed . | . . . Reprogrammed . | . . . Reused . | . . . Traps Extracted . | . . . Installed . | . . . Triggered . | . . . Most Traps Carried 3 | . . 3 Machines | -11 -10 -10 ---------- Run | Yrd Mat Sub Machines Disabled 1 | . . 1 Max in Single Turn 1 | . . 1 Machines Repaired . | . . . Machines Dismantled . | . . . Machines Sabotaged . | . . . Overloaded Fab Kills . | . . . Hacking | -11 -10 -10 --------- Run | Yrd Mat Sub Machines Accessed 1 | . . 1 Terminals . | . . . Fabricators . | . . . Repair Stations . | . . . Recycling Units . | . . . Scanalyzers . | . . . Garrison Access . | . . . Total Hacks 1 | . . 1 Successful 1 | . . 1 Failed . | . . . Catastrophic . | . . . Database Lockouts . | . . . Manual 1 | . 1 . Terminals . | . . . Fabricators . | . . . Repair Stations . | . . . Recycling Units . | . . . Scanalyzers . | . . . Garrison Access . | . . . Terminal Hacks 1 | . . 1 Proto ID Catalog 1 | . . 1 Fabricator Hacks . | . . . Repair Station Hacks . | . . . Recycling Unit Hacks . | . . . Scanalyzer . | . . . Garrison Access Hacks . | . . . Unauthorized Hacks . | . . . Terminals . | . . . Fabricators . | . . . Repair Stations . | . . . Recycling Units . | . . . Scanalyzers . | . . . Garrison Access . | . . . Data Cores Recovered . | . . . Used . | . . . Hacking Detections . | . . . Full Trace Events . | . . . Feedback Events . | . . . Feedback Blocked . | . . . Robot Schematics Acquired . | . . . Robots Built . | . . . Authchips . | . . . Time . | . . . Total Robot Build Rating . | . . . Part Schematics Acquired . | . . . Parts Built . | . . . Authchips . | . . . Time . | . . . Total Part Build Rating . | . . . Part Studies Acquired . | . . . Parts Repaired . | . . . Time . | . . . Parts Recycled . | . . . Recycled Matter . | . . . Retrieved Matter . | . . . Retrieved Components . | . . . Parts Scanalyzed . | . . . Part Schematics Acquired . | . . . Parts Damaged . | . . . Bothacking | -11 -10 -10 ------------ Run | Yrd Mat Sub Used RIF Installer . | . . . Robots Hacked . | . . . Non-combat . | . . . Combat . | . . . Robot Hacks Applied . | . . . Relay Couplers Released . | . . . Fabnet Peak Effective % . | . . . Robots Rewired . | . . . Allies Hacked . | . . . Hacks Repelled . | . . . Allies | -11 -10 -10 -------- Run | Yrd Mat Sub Total Allies . | . . . Largest Group . | . . . Highest-Rated Group . | . . . Highest-Rated Ally . | . . . Total Orders . | . . . Ally Attacks . | . . . Total Damage . | . . . Kills . | . . . Allies Corrupted . | . . . Allies Melted . | . . . X0-1V1 Amusement Gains 4 | . 4 . Good Acts 32 | . . 32 Bad Acts 50 | . . 50 Intel | -11 -10 -10 ------- Run | Yrd Mat Sub Active Infowar (turns) . | . . . Robot Analysis Total . | . . . Derelict Logs Recovered . | . . . Drone Launches . | . . . Drone Recoveries . | . . . Exploration | -11 -10 -10 ------------- Run | Yrd Mat Sub Turns Passed 2048 | 115 555 1378 Spaces Moved 1093 | 65 194 834 Core 4 | 4 . . Treads 509 | 61 194 254 Legs . | . . . Wheels 580 | . . 580 Hover . | . . . Flight . | . . . Fastest Speed 50 | 50 160 90 Average Speed 131 | 153 160 123 Slowest Speed 160 | 160 160 160 Overloaded Moves . | . . . Propulsion Burnouts . | . . . Robots Hopped . | . . . Potential Cave-ins 2 | . . 2 Cave-ins Triggered . | . . . Exploration Rate (%) 28 | 4 41 40 Regions Visited 2 Branch Regions 1 Pre-discovered Areas . | . . . Known Exits Taken . | . . . Unknown Exits Taken 2 | 1 1 . Scrap Searched 7 | . . 7 Spaces Dug . | . . . Terrain Destroyed 14 | . 3 11 Melee . | . . . Projectile 11 | . . 11 AOE 3 | . 3 . Terrain Rammed . | . . . Walls Destroyed . | . . . Machines Disabled . | . . . Actions | -11 -10 -10 --------- Run | Yrd Mat Sub Total 1494 | 74 395 1025 Wait 203 | . 177 26 Move 1091 | 64 193 834 Hop . | . . . Pick Up 31 | 2 4 25 Fast Attach 9 | 6 . 3 Attach 17 | . 1 16 Detach . | . . . Swap 7 | . 1 6 Drop 12 | . 1 11 Fire 117 | 2 18 97 Melee 7 | . . 7 Ram . | . . . Kick . | . . . Crush . | . . . Escape Stasis . | . . . Rewire . | . . . Trap . | . . . Miscellaneous . | . . . Route ------- -11/Scrapyard -10/Materials (discovered 3 exits: [*Mat] / [*Min] / *Sub) -10/Subcaves (discovered 2 exits: Mat / Rec) History --------- Turn | Location | Event 14 | -11/Scrapyard | Discovered new exit (range 15) 116 | -11/Scrapyard | Entered Materials 260 | -10/Materials | Discovered new exit (range 7) 307 | -10/Materials | Build established: Mutant 315 | -10/Materials | Discovered new exit (range 5) 662 | -10/Materials | Discovered new exit (range 3) 669 | -10/Materials | Prayed at D.C.S.S. Altar Unit 671 | -10/Materials | Entered Subcaves 868 | -10/Subcaves | Core integrity fell below 50% 1066 | -10/Subcaves | Matter capacity permanently improved by X0-1V1 (+200; -100 max core) 1129 | -10/Subcaves | X0-1V1 mutated your Weapon slot to Propulsion slot 1142 | -10/Subcaves | Core integrity permanently improved by X0-1V1 (+200) 1150 | -10/Subcaves | TH resistance permanently improved by X0-1V1 (+10%; -100 max core) 1164 | -10/Subcaves | X0-1V1 activates XOMVISION 1165 | -10/Subcaves | Identified exit to Materials 1165 | -10/Subcaves | X0-1V1 revealed exit location to -8/Materials 1231 | -10/Subcaves | X0-1V1 mutated your Propulsion slot to Utility slot 1242 | -10/Subcaves | X0-1V1 revealed exit location to -8/Materials 1291 | -10/Subcaves | Identified exit to Recycling 1291 | -10/Subcaves | X0-1V1 revealed exit location to -9/Recycling 1300 | -10/Subcaves | X0-1V1 tapped a No Entrance sign 1310 | -10/Subcaves | System corruption reached 10% 1324 | -10/Subcaves | X0-1V1 mutated your Utility slot to Power slot 1325 | -10/Subcaves | X0-1V1 activates XOMVISION 1345 | -10/Subcaves | X0-1V1 sent hostile G-34 Mercenary (x3) 1350 | -10/Subcaves | Shifting Twisted Machinery released Shrapnel Trap 1406 | -10/Subcaves | Shifting Twisted Machinery released Mak. Flight Unit 1414 | -10/Subcaves | X0-1V1 sent hostile S-10 Pest (x4) 1439 | -10/Subcaves | X0-1V1 mutated your Propulsion slot to Weapon slot 1494 | -10/Subcaves | X0-1V1 mutated your Utility slot to Weapon slot 1502 | -10/Subcaves | X0-1V1 activates XOMVISION 1505 | -10/Subcaves | Core integrity restored by X0-1V1 (+40) 1531 | -10/Subcaves | X0-1V1 sent hostile S-10 Pest (x3) 1540 | -10/Subcaves | Ambushed by Subdweller buried in earth 1589 | -10/Subcaves | X0-1V1 sent hostile G-34 Mercenary (x5) 1595 | -10/Subcaves | X0-1V1 mutated your Weapon slot to Utility slot 1632 | -10/Subcaves | Ambushed by Subdweller buried in earth 1681 | -10/Subcaves | Lost 3 parts (1u2w) 1852 | -10/Subcaves | Core integrity fell below 20% 1915 | -10/Subcaves | Visited 4L-MR0's lab 1930 | -10/Subcaves | Found Meta Core 2015 | -10/Subcaves | X0-1V1 sent hostile S-10 Pest (x4) 2029 | -10/Subcaves | X0-1V1 rescued you from certain death 2049 | -10/Subcaves | Destroyed by VI-9LH(R) with Subdweller Machine Gun Last Messages --------------- VL-GR5's Exoskeleton "Deathgrip" Powered Cannon 01926_ Testing Chamber breached. 01930_ Acquired Meta Core. 01936_ 4L-MR0 mumbles to no one in particular: "Damn Subs sneaking around stealing my stuff." 01939_ 4L-MR0 mumbles: "I'm surprised some of them are even willing to come in here given their fear of my usual visitors." 01947_ Acquired 10 matter. 01984_ Subatomizers dissect the Sub. Monowheel. 01990_ Acquired Sub. Monowheel. 02015_ X0-1V1: "Some new friends to play with." S-10 Pest form resolidifies at new position. 02029_ Rnf. Ion Engine destroyed. 02029_ X0-1V1 feels like keeping you around a while longer. 02029_ Core integrity partially restored (102). 02031_ X0-1V1 is getting bored... 02033_ Arm. Wheel destroyed. 02042_ Sub. Laser destroyed. 02049_ X0-1V1 laughs nastily! Map ----- +----------------------------------------------------+ | ??????????????????## ## #???# | | ??????????????????# ## #???## | | ????????????????# ## ######?????# | | ????????????? #### #??????????? | | ????????????# ???### #??????????? | | ????????????##### ???### ## #????????? | | ????????????????# #?### ##? #????????? | | ???????????????# ##?## ##??## #????????? | | ???????????????# ???# #????? #????????? | | ???????????????######### #????? ##????????? | | ??????????????????## ## ######?###?????????? | | ??????????????????# ## #### ##????????????? | | ??????????????????# ## ##? ###??????????? | | ???????????????????# ## ## ##?????????? | | ???????????????????# ## #?????????? | | ???????????????????#### ## #?????????? | | ??????????????????????# ## #?????????? | | ??????????????????????## #?????????? | | ??????????????????????## ### ## #????????? | | ??????????????????????# #####???##????????? | | ??????????????????????# ## #??????????????? | | ??????????????????????## ## ##??????????????? | | ???????????????????????## ##???????????????? | | ????????????????????##### #????????????????? | | ???????????????????## #????????????????? | | ?????????????????### R@ #####????????????????? | | ?????????????????# ##???????????????????? | | ????????????###??### R #???????????????????? | | ???????????## #????# ##??????????????????? | | ?????????### #???## ##?????????????????? | | ????###### #???# #?????????????????? | | ???## ##?## #????????????????? | | #?## ### ## #???????????????? | | ###! # ## #### #??????????????? | | %& %!#### ### ##?# #??????????????? | | # ####??# #?# #? ##??????????????? | | ###?????#### #???????????????? | | ??????????# #??????????????? | | ??????????# #??????????????? | | ???????? ### "" "?????????????? | | ??????# #??# ######## " "?????????????? | | ??????## ??# ##???????## ##??????????????? | | ??????# ?? #####??????????# "???????????????? | | ??????##?? ??????????>????? ??????????????? | | ?????????# ??????????????????? "" ??????????????? | | ?????????#" ????????????????????"????????????????? | | ????????? ??????????????????????????????????????? | | ??????????"??????????????????????????????????????? | | ?????????????????????????????????????????????????? | | ?????????????????????????????????????????????????? | +----------------------------------------------------+ Best States ------------- Heat Dissipation 44 Energy Generation 33 Energy Capacity 1340 Matter Stores 1100 Matter Capacity 1100 Sight Range 19 Terrain Scan Density 10 Resistance: KI 20 Resistance: TH 10 Evasion (%) 42 Recoil Reduction 2 Item Schematics ----------------- None Robot Schematics ------------------ None Fabricated ------------ Nothing Repaired ---------- Nothing Studied --------- None Alien Tech Used ----------------- None Achievements -------------- None Challenges ------------ None Game ------ Seed ShockboltHackingPick Manual? 0 Play Time 00:12:45 Cumulative 538.0 hours Start 2026.06.29 @ 23:17:49 End 2026.06.29 @ 23:29:07 Sessions 1 Manual Loads 0 Difficulty Rogue Special Mode None Game No. 451 Rogue 415 Adventurer 36 Explorer 0 Win Type - Total 26 Types 10/0/14/0/0/1/1/0/0/0 Lore% 73 Gallery% 85 Achievement% 73 Wizard Run 0 Options --------- Layout 0 ASCII 0 Keyboard 0 Movement Mouse Keybinds 0 Fullscreen 1 Font 18/SmallcapsGlow Map View 76x50 Zoom Use 0% Tactical HUD 1 Map Filters NONE Filters NONE Steam 1 RUN: bff34049-05e5-4d24-8823-fe93ed884185